bitfinex-derivatives/quotes_SOLF0:USTF0_20241218
["timestamp","ask_amount","ask_price","bid_price","bid_amount"]
[1734488458735,17.86331367,220.03,219.97,2.2729]
[1734488458931,17.86331367,220.02,219.93,14.20224862]
[1734488459142,2.8,220.07,219.93,14.20224862]
[1734488459439,2.2723,220.03,219.97,2.2728]
[1734488459936,2.2723,220.03,219.98,2.2727]
[1734488460539,20.1460538,220.03,219.98,2.2727]
[1734488460837,0.23271,220.09,219.99,8.66203232]
[1734488461035,0.23271,220.09,220.0,1.5705]
[1734488462040,2.8,220.08,219.95,2.8]
[1734488462242,8.66203232,220.07,219.95,2.8]
[1734488462439,33.42952459,220.07,219.95,2.8]
[1734488462742,17.87660071,220.06,219.95,2.8]
[1734488463032,17.87660071,220.05,219.95,2.8]
[1734488463240,17.87660071,220.04,220.0,2.2726]
[1734488463437,10.6410211,220.03,220.0,2.2726]
[1734488463633,2.272,220.06,220.0,2.2726]
[1734488463838,2.2719,220.07,220.01,2.2725]
[1734488464039,2.2719,220.07,219.96,8.66203232]
[1734488464240,27.05564036,220.07,219.96,8.66203232]
[1734488464439,17.88782902,220.06,220.01,2.2724]
[1734488464638,7.24011413,220.05,220.01,2.2724]
[1734488464840,7.24011413,220.05,219.96,8.66203232]
[1734488465045,7.24011413,220.05,220.02,2.2723]
[1734488465847,7.24011413,220.05,220.03,2.2722]
[1734488466243,7.24011413,220.06,220.03,2.2722]
[1734488466639,7.24011413,220.06,220.04,2.2721]
[1734488466840,17.88782902,220.08,220.04,2.2721]
[1734488467041,17.88782902,220.07,220.04,2.2721]
[1734488467246,17.88782902,220.06,220.04,2.2721]
[1734488467444,0.23271,220.09,220.01,2.78]
[1734488467744,0.23271,220.09,220.02,8.66203232]
[1734488468348,2.78,220.08,219.84,6.23741029]
[1734488468544,2.78,220.08,219.92,8.66203232]
[1734488468945,27.57702716,220.08,219.92,8.66203232]
[1734488469144,2.2723,220.03,219.96,2.273]
[1734488469445,2.2723,220.03,219.93,8.3202163]
[1734488469749,20.17057341,220.05,219.97,2.2728]
[1734488469949,17.89847341,220.04,219.97,2.2728]
[1734488470148,2.78,220.08,219.97,2.2728]
[1734488470149,17.89847341,220.03,219.97,2.2728]
[1734488470350,17.89847341,220.02,219.98,2.2728]
[1734488470541,0.23271,220.09,219.95,8.66203232]
[1734488470746,0.23271,220.09,219.96,1.4975]
[1734488471142,25.01529646,220.09,219.96,1.4975]
[1734488471348,20.15921237,220.08,220.0,2.2725]
[1734488471548,20.15921237,220.08,219.96,1.4975]
[1734488471549,17.88741237,220.07,219.96,1.4975]
[1734488471748,7.23997167,220.06,219.96,1.4975]
[1734488471950,7.23997167,220.06,219.99,2.2727]
[1734488472151,9.51197167,220.06,219.96,1.4975]
[1734488472352,10.6474407,220.05,219.96,1.4975]
[1734488472551,17.88741237,220.04,219.98,2.2728]
[1734488472752,10.6474407,220.03,219.98,2.2728]
[1734488472954,2.2721,220.05,219.96,1.4975]
[1734488474354,17.91604857,220.07,220.0,2.2725]
[1734488474355,17.91604857,220.06,220.0,2.2725]
[1734488474555,7.23679486,220.05,220.0,2.2725]
[1734488474756,7.23679486,220.05,219.96,1.4975]
[1734488474958,17.91604857,220.05,219.96,1.4975]
[1734488475153,17.91604857,220.04,219.96,1.4975]
[1734488475361,17.91484395,220.03,219.96,1.4975]
[1734488475559,8.66203232,220.1,219.96,1.4975]
[1734488475761,2.78,220.09,219.98,2.2727]
[1734488475963,9.67098748,220.09,219.98,2.2727]
[1734488476265,24.80358007,220.08,219.98,2.2727]
[1734488476566,2.2723,220.03,219.96,3.7704]
[1734488477165,2.2723,220.03,219.97,2.2729]
[1734488477460,2.78,220.09,219.98,8.66203232]
[1734488478264,27.10250445,220.09,219.98,8.66203232]
[1734488478466,24.83080445,220.08,220.01,8.66203232]
[1734488478671,17.93237458,220.07,220.02,1.4385]
[1734488478866,17.93237458,220.06,220.04,2.2721]
[1734488479063,10.68905407,220.1,220.04,2.2721]
[1734488479276,24.85476936,220.09,220.02,1.4385]
[1734488479468,160.21658791,220.16,220.02,1.4385]
[1734488479469,17.94249217,220.08,220.02,1.4385]
[1734488479668,7.2534381,220.07,220.02,1.4385]
[1734488479866,24.85511373,220.11,220.02,1.4385]
[1734488480166,17.94249217,220.1,220.02,1.4385]
[1734488480370,17.94249217,220.09,220.02,1.4385]
[1734488480671,17.94249217,220.08,220.06,2.2718]
[1734488480970,17.94249217,220.07,220.06,2.2718]
[1734488481166,7.2534381,220.07,220.06,2.2718]
[1734488481367,14.16999712,220.12,220.06,2.2718]
[1734488481566,10.68905407,220.11,220.06,2.2718]
[1734488481764,7.2534381,220.1,220.02,1.4385]
[1734488481967,7.2534381,220.1,219.99,2.78]
[1734488481968,14.16924747,220.1,219.99,2.78]
[1734488482173,24.85830154,220.09,219.99,2.78]
[1734488482466,17.60486344,220.08,219.99,2.78]
[1734488482662,2.272,220.06,220.0,2.2725]
[1734488483070,20.21449217,220.06,220.0,2.2725]
[1734488483271,17.94249217,220.05,220.01,2.2725]
[1734488483465,17.94249217,220.04,220.01,2.2725]
[1734488483671,17.94249217,220.03,220.01,2.2725]
[1734488483967,8.66203232,220.13,219.99,2.78]
[1734488484273,27.68848423,220.14,220.01,8.66203232]
[1734488484474,24.90848423,220.13,220.01,8.66203232]
[1734488484677,2.78,220.14,220.01,8.66203232]
[1734488484678,24.90848423,220.12,220.01,8.66203232]
[1734488484974,24.90848423,220.11,220.06,2.2719]
[1734488485171,24.90848423,220.1,220.06,2.2719]
[1734488485367,17.98862126,220.09,220.06,2.2719]
[1734488485674,17.98862126,220.08,220.06,2.2719]
[1734488485872,2.78,220.14,220.06,2.2719]
[1734488485873,7.26620579,220.07,220.06,2.2719]
[1734488486064,14.18275365,220.12,220.06,2.2719]
[1734488486268,10.72241547,220.11,220.01,8.66203232]
[1734488486573,14.18275365,220.1,220.01,8.66203232]
[1734488486775,10.72241547,220.09,220.01,8.66203232]
[1734488486975,7.26620579,220.08,220.01,8.66203232]
[1734488487569,2.2714,220.11,220.05,2.272]
[1734488487971,20.26002126,220.11,220.05,2.272]
[1734488488271,17.98862126,220.1,220.01,8.66203232]
[1734488488479,17.98862126,220.09,220.04,2.2722]
[1734488488671,7.26620579,220.08,220.04,2.2722]
[1734488489476,10.72241547,220.1,220.04,2.2722]
[1734488489672,10.72241547,220.09,220.04,2.2722]
[1734488489877,20.26042126,220.08,220.01,2.2724]
[1734488490172,17.98862126,220.07,219.96,1.4975]
[1734488490470,17.98862126,220.06,219.96,1.4975]
[1734488490675,2.2722,220.04,219.99,2.2727]
[1734488490976,2.2722,220.04,219.96,1.4975]
[1734488491179,20.26082126,220.04,219.98,2.2727]
[1734488491378,17.98862126,220.03,219.96,1.4975]
[1734488491676,2.78,220.07,219.96,1.4975]
[1734488491977,2.78,220.07,219.98,2.2727]
[1734488492177,2.2721,220.05,219.96,1.4975]
[1734488492377,2.2721,220.05,219.99,2.2726]
[1734488492677,2.2722,220.04,219.96,1.4975]
[1734488493070,27.64321109,220.07,219.96,3.7705]
[1734488493275,2.2724,220.02,219.96,3.7705]
[1734488494077,20.22826015,220.02,219.96,3.7705]
[1734488494278,17.95586015,220.01,219.96,3.7705]
[1734488494480,10.70289414,220.01,219.96,3.7705]
[1734488494679,2.78,220.07,219.97,2.2728]
[1734488494680,2.2723,220.03,219.97,2.2728]
[1734488495176,8.66203232,220.06,219.93,5.5402163]
[1734488495380,33.54749242,220.06,219.93,5.5402163]
[1734488495580,6.9035881,220.05,219.93,5.5402163]
[1734488495777,24.8854601,220.05,219.93,5.5402163]
[1734488496081,2.2726,220.01,219.95,2.2731]
[1734488496486,17.981872,220.02,219.96,2.273]
[1734488496681,7.24886468,220.01,219.95,8.66203232]
[1734488497089,7.24886468,220.01,219.97,2.2728]
[1734488497280,24.88345359,220.03,219.97,2.2728]
[1734488497481,17.981872,220.02,219.97,2.2728]
[1734488497681,17.981872,220.01,219.99,2.2727]
[1734488497876,17.981872,220.0,219.99,2.2727]
[1734488498179,7.24886468,220.0,219.99,2.2727]
[1734488498378,10.73300732,220.04,219.99,2.2727]
[1734488498379,14.1498492,220.03,219.99,2.2727]
[1734488498586,10.73300732,220.02,219.99,2.2727]
[1734488498786,7.24886468,220.01,219.95,12.90513232]
[1734488498979,17.981872,220.01,219.98,2.2728]
[1734488499181,4.372,220.07,219.95,12.90513232]
[1734488499182,17.981872,220.0,219.95,12.90513232]
[1734488499384,10.73300732,220.06,219.95,12.90513232]
[1734488499581,7.24716769,220.05,219.95,12.90513232]
[1734488499785,20.24976603,220.06,219.95,12.90513232]
[1734488500078,2.78,220.07,219.95,12.90513232]
[1734488500079,24.87903181,220.05,219.98,2.2728]
[1734488500283,17.97776603,220.04,219.98,2.2728]
[1734488500482,17.97776603,220.03,219.98,2.2728]
[1734488500685,17.97776603,220.02,219.98,2.2728]
[1734488500886,2.78,220.07,219.98,2.2728]
[1734488500887,17.97776603,220.01,219.98,2.2728]
[1734488501188,17.97776603,220.0,219.97,2.2729]
[1734488501390,10.73059834,219.99,219.97,2.2729]
[1734488501587,2.78,220.07,219.97,2.2729]
[1734488501781,2.2722,220.04,219.97,2.2729]
[1734488502683,24.88261302,220.04,219.93,7.0947163]
[1734488502983,24.88261302,220.03,219.93,5.5402163]
[1734488503187,2.2726,220.0,219.93,5.5402163]
[1734488503385,24.88261302,220.01,219.93,5.5402163]
[1734488503587,17.97972694,220.0,219.93,5.5402163]
[1734488503787,17.97972694,219.99,219.93,5.5402163]
[1734488503984,17.97972694,219.99,219.86,1.4462]
[1734488503985,17.97972694,219.98,219.86,1.4462]
[1734488504190,24.87747004,219.97,219.88,5.41534412]
[1734488504493,17.97972694,219.96,219.88,5.41534412]
[1734488504694,17.97972694,219.95,219.88,5.41534412]
[1734488504986,2.78,220.0,219.88,5.41534412]
[1734488505187,2.78,220.0,219.92,2.2733]
[1734488505188,2.2727,219.99,219.92,2.2733]
[1734488505382,2.78,220.0,219.88,5.41534412]
[1734488505583,27.64001795,220.0,219.88,5.41534412]
[1734488505787,17.96294633,219.99,219.88,5.41534412]
[1734488505991,2.2729,219.97,219.88,5.41534412]
[1734488506191,17.96294633,219.98,219.88,5.41534412]
[1734488506385,17.96294633,219.97,219.88,5.41534412]
[1734488506591,17.96294633,219.96,219.91,2.2735]
[1734488506791,10.72158814,219.95,219.91,2.2735]
[1734488507092,10.72158814,219.94,219.91,2.2735]
[1734488507388,2.78,220.0,219.89,2.2736]
[1734488507589,11.44203232,220.0,219.89,2.2736]
[1734488507784,24.83909922,219.99,219.88,5.41534412]
[1734488507990,8.66203232,219.97,219.88,5.41534412]
[1734488508189,33.50113154,219.97,219.85,1.4792]
[1734488508385,2.2736,219.9,219.85,5.36626637]
[1734488508990,2.2737,219.89,219.85,5.36626637]
[1734488509591,20.22127423,219.9,219.85,5.36626637]
[1734488509795,2.2736,219.9,219.85,5.36626637]
[1734488510193,2.2736,219.9,219.83,2.2742]
[1734488510391,2.78,219.93,219.84,8.66203232]
[1734488510592,2.78,219.93,219.8,2.78]
[1734488510792,20.70358178,219.93,219.8,11.44203232]
[1734488510987,17.92358178,219.92,219.8,11.44203232]
[1734488511193,10.6979141,219.92,219.8,11.44203232]
[1734488511398,2.2736,219.9,219.84,2.2742]
[1734488511603,2.78,219.93,219.8,8.66203232]
[1734488511797,8.66203232,219.91,219.77,8.66203232]
[1734488511998,2.2741,219.86,219.78,2.2747]
[1734488512200,8.66203232,219.91,219.77,8.66203232]
[1734488512201,17.91028553,219.9,219.77,8.66203232]
[1734488512400,7.22030121,219.89,219.77,8.66203232]
[1734488512599,2.2741,219.85,219.78,2.2748]
[1734488513001,10.00030121,219.87,219.75,2.9511]
[1734488513200,10.00030121,219.87,219.76,2.275]
[1734488513201,2.2743,219.83,219.76,2.275]
[1734488514405,8.66203232,219.82,219.57,4.554]
[1734488514600,2.78,219.81,219.66,10.10173232]
[1734488514903,13.44895978,219.81,219.66,10.10173232]
[1734488515101,7.1956714,219.8,219.66,10.10173232]
[1734488515302,7.1956714,219.8,219.66,1.4397]
[1734488515303,2.2754,219.73,219.66,1.4397]
[1734488516302,181.86546671,219.96,219.72,8.66203232]
[1734488516607,8.66203232,219.9,219.75,8.66203232]
[1734488516800,2.2742,219.84,219.73,2.2753]
[1734488517002,2.78,219.84,219.72,8.66203232]
[1734488518102,17.79680714,219.85,219.77,2.2749]
[1734488518103,5.0542,219.85,219.77,2.2749]
[1734488518302,5.0542,219.85,219.71,2.78]
[1734488518303,2.78,219.85,219.71,2.78]
[1734488518607,2.2749,219.78,219.7,2.2756]
[1734488518803,5.0549,219.78,219.7,2.2756]
[1734488519904,2.2749,219.77,219.7,2.2756]
[1734488520107,2.78,219.78,219.68,2.2758]
[1734488521401,2.2752,219.75,219.67,5.52753093]
[1734488521607,2.78,219.78,219.67,5.52753093]
[1734488521802,1.5414,219.8,219.67,5.52753093]
[1734488522009,1.5414,219.8,219.69,8.66203232]
[1734488522214,2.78,219.81,219.69,8.66203232]
[1734488522414,10.20343232,219.87,219.72,8.66203232]
[1734488522601,6.5954,219.87,219.8,2.2746]
[1734488523005,4.3214,219.87,219.8,2.2746]
[1734488523208,2.274,219.86,219.78,2.2747]
[1734488523411,4.3214,219.87,219.75,8.66203232]
[1734488523612,2.78,219.87,219.75,13.30133232]
[1734488523805,2.78,219.87,219.82,2.2744]
[1734488524611,2.2738,219.89,219.82,2.2744]
[1734488525108,2.2738,219.88,219.82,2.2744]
[1734488526214,2.2738,219.88,219.75,4.6393]
[1734488526215,2.2739,219.87,219.75,18.5138813]
[1734488526608,2.78,219.9,219.75,18.5138813]
[1734488526609,2.78,219.9,219.75,3.0558]
[1734488526808,13.8745813,219.88,219.7,2.78]
[1734488527206,17.76377729,219.87,219.7,2.78]
[1734488527407,7.16135358,219.86,219.7,2.78]
[1734488528014,2.2748,219.79,219.73,2.2753]
[1734488528513,2.2748,219.79,219.7,2.78]
[1734488528703,2.2748,219.79,219.74,2.2752]
[1734488530007,2.78,219.81,219.74,2.2752]
[1734488530204,2.78,219.84,219.78,2.2748]
[1734488530408,13.3743811,219.84,219.72,1.5378]
[1734488530711,2.78,219.84,219.72,1.5378]
[1734488530906,2.2744,219.82,219.72,1.5378]
[1734488531513,2.2744,219.82,219.76,2.275]
[1734488531714,2.2744,219.83,219.72,1.5378]
[1734488532313,2.78,219.84,219.74,2.2752]
[1734488532514,2.78,219.84,219.72,1.5378]
[1734488533321,2.2747,219.8,219.73,2.2753]
[1734488533521,2.2747,219.8,219.72,1.5378]
[1734488534024,2.2745,219.81,219.74,2.2752]
[1734488534221,2.78,219.84,219.72,1.5378]
[1734488534919,2.2744,219.83,219.77,2.2749]
[1734488535120,2.78,219.89,219.76,2.78]
[1734488535425,2.78,219.89,219.77,1.5383]
[1734488535825,13.39335982,219.89,219.77,1.5383]
[1734488536121,13.8745813,219.96,219.77,1.5383]
[1734488536328,20.5634454,219.95,219.78,1.5441]
[1734488536518,17.7834454,219.94,219.78,1.5441]
[1734488537027,7.16939775,219.93,219.78,1.5441]
[1734488537225,17.7834454,219.93,219.78,1.5441]
[1734488537425,2.2737,219.89,219.78,1.5441]
[1734488538022,2.2737,219.89,219.81,2.2745]
[1734488538223,2.2737,219.89,219.78,1.5441]
[1734488538425,2.78,219.92,219.78,1.5441]
[1734488538426,20.5743905,219.92,219.78,1.5441]
[1734488538728,17.7943905,219.91,219.77,1.5383]
[1734488538924,7.17366248,219.9,219.77,1.5383]
[1734488539526,2.2744,219.82,219.77,3.8132]
[1734488539924,2.78,219.85,219.77,3.8132]
[1734488539925,2.78,219.85,219.77,1.5383]
[1734488540125,2.2746,219.81,219.77,1.5383]
[1734488540321,2.2746,219.81,219.75,2.2751]
[1734488541126,2.2743,219.84,219.77,2.2749]
[1734488541731,2.78,219.85,219.77,2.2749]
[1734488542226,2.78,219.85,219.76,2.275]
[1734488542921,2.2745,219.81,219.75,2.2751]
[1734488543527,2.78,219.85,219.73,1.5441]
[1734488543823,20.61406759,219.85,219.68,1.5389]
[1734488544022,17.83406759,219.84,219.68,4.6723]
[1734488544226,2.2752,219.75,219.7,2.2757]
[1734488544433,2.78,219.79,219.68,4.6723]
[1734488544633,2.2755,219.72,219.68,1.5389]
[1734488546131,2.78,219.79,219.68,1.5389]
[1734488546330,2.78,219.79,219.68,3.8148]
[1734488546629,20.63664979,219.79,219.68,10.22059745]
[1734488546835,17.85664979,219.78,219.68,10.22059745]
[1734488547127,7.19904313,219.77,219.68,10.22059745]
[1734488547333,2.2751,219.76,219.69,2.2757]
[1734488547632,2.2751,219.76,219.68,10.22059745]
[1734488548428,20.64871798,219.79,219.68,10.22059745]
[1734488548429,17.86871798,219.78,219.68,10.22059745]
[1734488548634,2.78,219.85,219.71,8.68169745]
[1734488548834,2.78,219.85,219.72,1.5542]
[1734488549034,2.2744,219.83,219.72,1.5542]
[1734488549335,2.78,219.85,219.72,1.5542]
[1734488549533,20.66090327,219.85,219.72,1.5542]
[1734488549731,17.88090327,219.84,219.72,1.5542]
[1734488549928,7.20868508,219.83,219.72,1.5542]
[1734488550334,2.2744,219.82,219.72,3.1525]
[1734488550537,17.88090327,219.83,219.72,5.9325]
[1734488550737,17.88090327,219.82,219.72,5.9325]
[1734488551040,17.88090327,219.81,219.72,5.9325]
[1734488551234,17.88090327,219.8,219.72,5.9325]
[1734488551433,10.67221819,219.79,219.72,5.9325]
[1734488551733,2.78,219.85,219.72,5.9325]
[1734488551934,27.57475746,219.85,219.72,5.9325]
[1734488552135,2.2744,219.83,219.75,2.2751]
[1734488552335,17.91419824,219.83,219.75,2.2751]
[1734488552529,17.91419824,219.82,219.75,2.2751]
[1734488552735,17.91419824,219.81,219.75,2.2751]
[1734488552936,17.91419824,219.8,219.75,2.2751]
[1734488553138,2.78,219.85,219.75,2.2751]
[1734488553139,10.69227935,219.84,219.75,2.2751]
[1734488553439,2.78,219.85,219.72,5.9325]
[1734488553440,2.2745,219.82,219.72,5.9325]
[1734488553737,12.96677935,219.82,219.72,5.9325]
[1734488553939,17.93029377,219.81,219.75,2.2752]
[1734488554133,7.23801442,219.8,219.75,2.2752]
[1734488555033,7.23801442,219.8,219.78,2.2748]
[1734488555539,7.23801442,219.83,219.78,2.2748]
[1734488557834,7.23801442,219.83,219.74,8.68169745]
[1734488558033,14.15368421,219.83,219.72,3.1525]
[1734488558235,24.84596356,219.82,219.72,1.5542]
[1734488558439,2.2753,219.74,219.68,3.8147]
[1734488558639,2.2753,219.74,219.68,1.5389]
[1734488559340,2.2752,219.75,219.69,2.2758]
[1734488559531,17.93029377,219.76,219.68,10.22059745]
[1734488559731,17.93029377,219.75,219.68,10.22059745]
[1734488559938,7.23801442,219.74,219.71,2.2755]
[1734488560141,17.93029377,219.74,219.71,2.2755]
[1734488560442,10.69227935,219.73,219.71,2.2755]
[1734488560638,2.275,219.77,219.71,2.2755]
[1734488560839,2.76,219.81,219.7,2.2757]
[1734488561040,2.2751,219.76,219.7,2.2757]
[1734488561835,17.99960038,219.77,219.65,8.68169745]
[1734488562041,24.91521567,219.76,219.62,10.20329745]
[1734488562234,8.68169745,219.77,219.62,10.20329745]
[1734488562235,24.91521567,219.75,219.62,10.20329745]
[1734488562440,17.99960038,219.74,219.66,5.52782584]
[1734488562743,7.25659397,219.73,219.66,5.52782584]
[1734488562942,7.25659397,219.73,219.67,2.276]
[1734488563537,7.25659397,219.73,219.66,5.52782584]
[1734488563741,9.53199397,219.73,219.67,2.276]
[1734488563942,10.74300641,219.72,219.67,2.276]
[1734488564444,2.76,219.79,219.66,5.52782584]
[1734488564639,27.64677276,219.79,219.66,5.52782584]
[1734488564944,2.275,219.77,219.71,2.2755]
[1734488565141,20.25498542,219.77,219.71,2.2755]
[1734488565441,17.97998542,219.76,219.72,2.2754]
[1734488565641,17.97998542,219.76,219.68,8.68169745]
[1734488565642,10.73123674,219.75,219.68,8.68169745]
[1734488565839,2.76,219.79,219.68,8.68169745]
[1734488566036,2.2747,219.8,219.68,8.68169745]
[1734488566239,24.88633416,219.81,219.71,8.68169745]
[1734488566436,17.97973044,219.8,219.72,3.0403]
[1734488566641,17.97973044,219.79,219.74,2.2753]
[1734488566842,17.97973044,219.79,219.72,1.5507]
[1734488567042,7.24866542,219.78,219.67,11.44169745]
[1734488567347,14.15980036,219.81,219.69,2.2758]
[1734488567543,10.73106502,219.8,219.67,11.44169745]
[1734488567838,14.15980036,219.79,219.66,5.52782584]
[1734488568037,8.68169745,219.77,219.63,1.5507]
[1734488568234,33.57256283,219.77,219.63,1.5507]
[1734488568436,2.2757,219.7,219.64,2.2762]
[1734488568745,2.2757,219.7,219.63,1.5507]
[1734488569640,10.73106502,219.71,219.68,8.68169745]
[1734488569843,2.275,219.77,219.68,8.68169745]
[1734488570044,2.275,219.77,219.68,11.44169745]
[1734488570241,24.92704513,219.82,219.73,2.2753]
[1734488570242,2.2747,219.79,219.73,2.2753]
[1734488570436,24.92704513,219.8,219.71,8.68169745]
[1734488570641,18.00923578,219.79,219.71,8.68169745]
[1734488570946,18.00923578,219.78,219.71,8.68169745]
[1734488571144,18.00923578,219.77,219.71,8.68169745]
[1734488571447,10.74889437,219.76,219.72,2.2754]
[1734488571745,2.76,219.82,219.71,8.68169745]
[1734488571947,2.2748,219.79,219.73,2.2753]
[1734488573539,20.29646903,219.79,219.73,2.2753]
[1734488573738,18.02166903,219.78,219.73,2.2753]
[1734488573942,7.26547007,219.77,219.73,2.2753]
[1734488575240,7.26547007,219.77,219.74,2.2753]
[1734488580941,7.26547007,219.77,219.73,2.2754]
[1734488581245,18.02166903,219.77,219.73,2.2754]
[1734488581450,7.26547007,219.76,219.74,2.2752]
[1734488581645,7.26547007,219.76,219.72,1.459]
[1734488582054,18.02166903,219.78,219.72,1.459]
[1734488582254,2.76,219.84,219.72,1.459]
[1734488582255,18.02166903,219.77,219.72,1.459]
[1734488582452,18.02166903,219.76,219.72,1.459]
[1734488582653,10.75619896,219.75,219.72,1.459]
[1734488582853,2.76,219.84,219.72,1.459]
[1734488583153,13.52684417,219.84,219.72,1.459]
[1734488583355,10.76684417,219.83,219.72,1.459]
[1734488583647,14.2018644,219.82,219.72,1.459]
[1734488583953,10.76684417,219.81,219.72,1.459]
[1734488584152,14.2018644,219.8,219.72,1.459]
[1734488584345,2.275,219.77,219.72,3.7345]
[1734488584752,2.275,219.77,219.69,1.4897]
[1734488584753,8.68169745,219.76,219.6,2.76]
[1734488584952,2.2756,219.71,219.66,2.276]
[1734488585250,2.76,219.71,219.61,1.5753]
[1734488585547,2.2765,219.63,219.56,2.2771]
[1734488587051,9.54916847,219.63,219.56,2.2771]
[1734488587353,10.76684417,219.62,219.56,2.2771]
[1734488587552,2.2765,219.63,219.56,2.2771]
[1734488588654,2.2767,219.6,219.53,10.95909745]
[1734488588953,166.67005559,219.75,219.49,4.6259]
[1734488588954,36.57856955,219.64,219.49,4.6259]
[1734488589158,2.2772,219.56,219.49,4.6259]
[1734488589348,8.68169745,219.61,219.49,4.6259]
[1734488589549,26.89476237,219.61,219.49,1.5753]
[1734488589849,18.21306492,219.6,219.49,1.5753]
[1734488590054,7.31038936,219.59,219.49,1.5753]
[1734488590254,7.31038936,219.59,219.5,5.52054668]
[1734488590646,2.2771,219.56,219.5,5.52054668]
[1734488590846,10.90267556,219.58,219.5,5.52054668]
[1734488591050,2.76,219.63,219.51,8.68169745]
[1734488591252,2.76,219.63,219.5,5.52054668]
[1734488591253,2.76,219.63,219.54,8.68169745]
[1734488591456,2.2765,219.62,219.55,2.2772]
[1734488592047,18.18156812,219.62,219.54,8.68169745]
[1734488592257,10.88368459,219.62,219.54,8.68169745]
[1734488592456,2.76,219.63,219.54,8.68169745]
[1734488592658,2.2762,219.65,219.54,8.68169745]
[1734488593555,13.14732488,219.65,219.54,8.68169745]
[1734488593758,2.2762,219.65,219.54,8.68169745]
[1734488594553,2.2762,219.65,219.58,2.2769]
[1734488594859,13.14693506,219.65,219.58,2.2769]
[1734488595059,2.2762,219.65,219.58,2.2769]
[1734488595460,2.2762,219.65,219.57,2.277]
[1734488596253,13.14833804,219.65,219.57,2.277]
[1734488596452,2.2762,219.65,219.57,2.277]
[1734488597853,18.16453336,219.69,219.54,8.68169745]
[1734488598161,7.29091929,219.68,219.6,8.68169745]
[1734488599061,10.87361407,219.69,219.6,8.68169745]
[1734488599260,18.17900984,219.68,219.6,8.68169745]
[1734488599456,2.2759,219.68,219.61,2.2766]
[1734488599657,8.68169745,219.63,219.5,5.52054668]
[1734488599958,2.76,219.62,219.5,5.52054668]
[1734488600159,20.96748148,219.63,219.51,8.68169745]
[1734488600459,2.76,219.63,219.56,2.277]
[1734488600855,2.76,219.63,219.51,11.44169745]
[1734488601058,2.76,219.63,219.5,8.28054668]
[1734488601356,8.68169745,219.61,219.5,5.52054668]
[1734488601555,2.2772,219.55,219.5,5.52054668]
[1734488601862,18.2028897,219.6,219.5,5.52054668]
[1734488602061,7.30623462,219.59,219.5,5.52054668]
[1734488602457,2.2771,219.56,219.51,2.2776]
[1734488603453,20.96453355,219.6,219.42,8.68169745]
[1734488603454,26.886231,219.59,219.42,8.68169745]
[1734488603658,2.76,219.6,219.42,8.68169745]
[1734488603659,8.68169745,219.56,219.42,8.68169745]
[1734488604059,26.886231,219.56,219.42,8.68169745]
[1734488604361,2.2779,219.49,219.41,2.76]
[1734488604757,2.2779,219.49,219.42,5.57190685]
[1734488605554,2.2779,219.49,219.43,2.2785]
[1734488606057,2.2779,219.49,219.41,2.76]
[1734488606262,2.76,219.6,219.44,13.92483916]
[1734488606462,195.49546671,219.72,219.44,13.92483916]
[1734488606463,2.76,219.61,219.44,13.92483916]
[1734488607068,20.90823876,219.61,219.44,13.92483916]
[1734488607261,18.14823876,219.6,219.44,13.92483916]
[1734488607461,2.2771,219.56,219.5,2.2777]
[1734488607662,10.86363012,219.58,219.44,13.92483916]
[1734488607857,10.86363012,219.57,219.44,13.92483916]
[1734488608065,5.6021014,219.6,219.44,13.92483916]
[1734488608266,5.6021014,219.6,219.5,2.2777]
[1734488608267,2.2771,219.57,219.5,2.2777]
[1734488609463,2.2771,219.57,219.47,2.76]
[1734488609464,2.2771,219.57,219.51,2.2776]
[1734488609658,2.2769,219.58,219.47,2.76]
[1734488609859,2.76,219.59,219.48,1.5705]
[1734488610267,2.76,219.59,219.51,2.2776]
[1734488610268,2.2769,219.58,219.51,2.2776]
[1734488611259,2.2769,219.58,219.48,15.49533916]
[1734488611260,13.92483916,219.57,219.41,5.53811801]